fUST/lending_fUST_20240711
["ID","MTS","AMOUNT","RATE_DAILY","PERIOD"]
[331693140,1720649450945,-500.0,0.00033424,2]
[331693141,1720649450954,-500.0,0.00033424,7]
[331693142,1720649450964,-586.51,0.00033424,7]
[331693143,1720649450973,-500.0,0.00033424,7]
[331693144,1720649450982,-529.42026115,0.00033424,7]
[331693145,1720649450991,-500.0,0.00033424,7]
[331693146,1720649451000,-500.0,0.00033424,2]
[331693147,1720649451010,-500.0,0.00033424,7]
[331693148,1720649451019,-500.0,0.00033424,7]
[331693149,1720649451028,-500.0,0.00033424,7]
[331693150,1720649451038,-473.84957428,0.00033424,7]
[331693151,1720649451046,-500.0,0.00033424,7]
[331693152,1720649451055,-500.0,0.00033424,7]
[331693153,1720649451064,-248.66485009,0.00033424,7]
[331693154,1720649451073,-500.0,0.00033424,7]
[331693155,1720649451082,-500.0,0.00033424,7]
[331693156,1720649451093,-500.0,0.00033424,7]
[331693157,1720649451103,-500.0,0.00033424,7]
[331693158,1720649451114,-692.56,0.00033424,7]
[331693159,1720649451123,-674.66,0.00033424,7]
[331693160,1720649451132,-500.0,0.00033424,7]
[331693161,1720649451141,-500.0,0.00033424,7]
[331693162,1720649451149,-618.84,0.00033424,7]
[331693163,1720649451158,-500.0,0.00033424,2]
[331693164,1720649451167,-500.0,0.00033424,7]
[331693165,1720649451176,-698.66,0.00033424,7]
[331693166,1720649451185,-500.0,0.00033424,7]
[331693167,1720649451194,-500.0,0.00033424,7]
[331693168,1720649451203,-500.0,0.00033424,7]
[331693169,1720649451212,-500.0,0.00033424,7]
[331693170,1720649451222,-500.0,0.00033424,7]
[331693171,1720649451232,-976.57,0.00033424,7]
[331693172,1720649451243,-500.0,0.00033424,7]
[331693173,1720649451253,-500.0,0.00033424,7]
[331693174,1720649451263,-500.0,0.00033424,7]
[331693175,1720649451280,-500.0,0.00033424,7]
[331693176,1720649451289,-500.0,0.00033424,7]
[331693177,1720649451298,-2116.23,0.00033424,7]
[331693178,1720649451308,-500.0,0.00033424,7]
[331693179,1720649451317,-1191.01,0.00033424,7]
[331693180,1720649451326,-500.0,0.00033424,7]
[331693181,1720649451335,-500.0,0.00033424,7]
[331693182,1720649451344,-500.0,0.00033424,7]
[331693183,1720649451353,-500.0,0.00033424,7]
[331693184,1720649451363,-500.0,0.00033424,7]
[331693185,1720649451373,-893.88,0.00033424,7]
[331693186,1720649451382,-500.0,0.00033424,7]
[331693187,1720649451391,-742.63,0.00033424,7]
[331693188,1720649451401,-1500.0,0.00033424,7]
[331693189,1720649451413,-500.0,0.00033424,7]
[331693190,1720649451423,-560.1,0.00033424,7]
[331693191,1720649451432,-500.0,0.00033424,7]
[331693192,1720649451443,-330.15600127,0.00033424,7]
[331693193,1720649451452,-1345.03,0.00033424,7]
[331693194,1720649451463,-500.0,0.00033424,7]
[331693195,1720649451472,-720.94,0.00033424,7]
[331693196,1720649451481,-536.15,0.00033424,7]
[331693197,1720649451490,-5050.4,0.00033424,7]
[331693198,1720649451499,-703.97,0.00033424,7]
[331693199,1720649451592,-802.26,0.00033424,7]
[331693200,1720649451602,-500.0,0.00033424,7]
[331693201,1720649451612,-1444.84,0.00033424,7]
[331693202,1720649451621,-500.0,0.00033424,7]
[331693203,1720649451630,-231.63111983,0.00033424,7]
[331693204,1720649451639,-500.0,0.00033424,7]
[331693205,1720649451650,-389.456676,0.00033424,7]
[331693206,1720649451659,-389.456676,0.00033424,7]
[331693207,1720649451668,-500.0,0.00033424,7]
[331693208,1720649451677,-853.01,0.00033424,7]
[331693209,1720649451686,-500.0,0.00033424,7]
[331693210,1720649451695,-500.0,0.00033424,7]
[331693211,1720649451704,-500.0,0.00033424,7]
[331693212,1720649451713,-592.02,0.00033424,7]
[331693213,1720649451722,-500.0,0.00033424,7]
[331693214,1720649451732,-3721.58,0.00033424,7]
[331693215,1720649451741,-1991.6,0.00033424,7]
[331693216,1720649451752,-500.0,0.00033424,7]
[331693217,1720649451761,-609.62,0.00033424,7]
[331693218,1720649451772,-500.0,0.00033424,7]
[331693219,1720649451781,-500.0,0.00033424,7]
[331693220,1720649451790,-536.6132868,0.00033424,7]
[331693221,1720649451800,-500.0,0.00033424,7]
[331693222,1720649451810,-500.0,0.00033424,7]
[331693223,1720649451819,-500.0,0.00033424,7]
[331693224,1720649451829,-500.0,0.00033424,7]
[331693225,1720649451839,-500.0,0.00033424,7]
[331693226,1720649451849,-500.0,0.00033424,7]
[331693227,1720649451858,-500.0,0.00033424,7]
[331693228,1720649451867,-3369.55,0.00033424,7]
[331693229,1720649451877,-9418.44,0.00033424,7]
[331693230,1720649451886,-602.3,0.00033424,7]
[331693231,1720649451897,-1142.01,0.00033424,7]
[331693232,1720649451907,-500.0,0.00033424,7]
[331693233,1720649451919,-1798.34,0.00033424,7]
[331693234,1720649451928,-847.25,0.00033424,7]
[331693235,1720649451937,-500.0,0.00033424,2]
[331693236,1720649451946,-500.0,0.00033424,2]
[331693237,1720649451956,-500.0,0.00033424,7]
[331693238,1720649451966,-526.36449575,0.00033424,7]
[331693239,1720649451975,-596.82,0.00033424,7]
[331693240,1720649451984,-48291.56810744,0.000335,2]
[331693241,1720649452094,-151.0,0.00032876,7]
[331693242,1720649452104,-313.24405252,0.000335,2]
[331693243,1720649452117,-80054.11843447,0.000335,2]
[331693318,1720649919040,10583.55970307,0.00016255,2]
[331693320,1720649999828,201.88405189,0.00016255,2]
[331693329,1720650184114,208.17979125,0.00016255,2]
[331693341,1720650236071,426.80021744,0.00016255,2]
[331693346,1720650246730,193.69798923,0.00016255,2]
[331693348,1720650280397,248.60482369,0.00016255,2]
[331693349,1720650289445,157.66523315,0.00016255,2]
[331693350,1720650291339,1500.0,0.00016255,2]
[331693355,1720650416495,209.72130719,0.00016255,2]
[331693356,1720650470624,8860.13041845,0.00016255,2]
[331693357,1720650485539,195.31716393,0.00016255,2]
[331693360,1720650554489,-896.38711016,0.00017966,2]
[331693361,1720650554540,-705.64538464,0.00017966,2]
[331693362,1720650554574,-190.74172552,0.00018096,2]
[331693363,1720650554615,-0.30471923,0.00018096,2]
[331693365,1720650554666,-266.20669449,0.00018196,2]
[331693366,1720650563113,-33.79330551,0.00018196,2]
[331693367,1720650563136,-24900.0,0.00018197,2]
[331693368,1720650563157,-275.654906,0.00018197,2]
[331693369,1720650563176,-322.17771164,0.00018798,2]
[331693370,1720650563196,-3078.51196359,0.00018899,2]
[331693371,1720650563216,-154.69833824,0.00018899,2]
[331693372,1720650563236,-4922.29467692,0.00018899,2]
[331693373,1720650563256,-1128.92787164,0.00019603,2]
[331693374,1720650563276,-2126.43441341,0.00019703,2]
[331693375,1720650563295,-1042.84396616,0.00019703,2]
[331693376,1720650563318,-170.86914236,0.0002,2]
[331693377,1720650563338,-428.33485551,0.0002,2]
[331693378,1720650563359,-420.0,0.00020015,2]
[331693379,1720650563379,-171.54217,0.00021096,2]
[331693380,1720650563400,-208.72370244,0.00021185,2]
[331693381,1720650570156,-1592.45204296,0.000189,2]
[331693382,1720650570176,-577.72703046,0.00021185,2]
[331693383,1720650570196,-440.9643211,0.00021526,4]
[331693384,1720650570216,-155.1865506,0.00021917,2]
[331693385,1720650570236,-376.04496946,0.00022,2]
[331693386,1720650570257,-433.0,0.00022017,2]
[331693387,1720650570277,-1128.92787157,0.00022219,2]
[331693388,1720650570297,-628.32253665,0.00022244,2]
[331693389,1720650570316,-620.41612683,0.00023356,2]
[331693390,1720650570340,-250.0,0.00023716,2]
[331693391,1720650570360,-201.08454688,0.000239,2]
[331693394,1720650604566,-191.04644475,0.00018096,2]
[331693395,1720650604600,-161.7039252,0.00019703,2]
[331693407,1720650632790,-191.16817144,0.00019703,2]
[331693408,1720650632800,-2801.42600941,0.00019703,2]
[331693470,1720650638142,-2120.86866751,0.00019703,2]
[331693471,1720650638152,-294.20854175,0.0002,2]
[331693472,1720650638161,-3060.49292004,0.0002,2]
[331693473,1720650638170,-417.337995,0.00021096,2]
[331693474,1720650638180,-629.42559614,0.00021185,2]
[331693475,1720650638189,-620.47127981,0.00022244,2]
[331693476,1720650638199,-620.02356399,0.00023356,2]
[331693477,1720650638209,-1391.36749608,0.000239,2]
[331693478,1720650638219,-6383.6650664,0.00024112,2]
[331693479,1720650638228,-166.666666,0.00024372,2]
[331693480,1720650638238,-620.02080634,0.00024524,2]
[331693481,1720650638248,-620.0011782,0.00024524,2]
[331693482,1720650638258,-300.0,0.00024538,2]
[331693483,1720650638267,-300.0,0.00024538,2]
[331693484,1720650638277,-693.5886557,0.00024539,2]
[331693485,1720650638286,-1128.92787157,0.00024835,2]
[331693486,1720650638296,-166.666666,0.00025036,2]
[331693487,1720650638305,-243.76187747,0.00025125,2]
[331693488,1720650638315,-335.69498053,0.00025381,2]
[331693489,1720650638324,-437.38,0.00025481,3]
[331693490,1720650638334,-11813.21,0.00025481,3]
[331693491,1720650638343,-234.55,0.00025481,3]
[331693492,1720650638355,-13596.36,0.00025481,3]
[331693493,1720650638364,-11330.3,0.00025481,3]
[331693494,1720650638374,-703.65,0.00025481,3]
[331693495,1720650638383,-9441.92,0.00025481,3]
[331693496,1720650638393,-819.26,0.00025491,3]
[331693497,1720650638403,-96907.7934999,0.00025491,3]
[331693498,1720650638413,-44248.30620871,0.00025501,2]
[331693499,1720650638423,-30000.0,0.00025501,2]
[331693500,1720650638433,-166.666666,0.00025701,2]
[331693501,1720650638442,-620.00104032,0.0002575,2]
[331693502,1720650638451,-620.00005891,0.0002575,2]
[331693503,1720650638462,-166.666666,0.00026365,2]
[331693504,1720650638471,-154.62117811,0.00026574,2]
[331693505,1720650638481,-287.0,0.00026595,2]
[331693506,1720650638491,-469.1,0.00026851,3]
[331693507,1720650638500,-166.666666,0.0002703,2]
[331693508,1720650638510,-620.00005202,0.00027038,2]
[331693509,1720650638519,-620.00000295,0.00027038,2]
[331693510,1720650638528,-417.337995,0.00027195,2]
[331693511,1720650638537,-275.654906,0.00027295,2]
[331693512,1720650638547,-158.527152,0.00027397,120]
[331693513,1720650638556,-1128.92787157,0.00027451,2]
[331693514,1720650638566,-161.689368,0.00027474,2]
[331693515,1720650638575,-166.666666,0.00027694,2]
[331693516,1720650638585,-229.31696231,0.00028,30]
[331693517,1720650638594,-503.64031218,0.00028,2]
[331693518,1720650638604,-620.0000026,0.0002839,2]
[331693519,1720650638613,-620.00000015,0.0002839,2]
[331693520,1720650638623,-15591.97418008,0.00029,5]
[331693521,1720650638632,-453.22022894,0.00029,2]
[331693522,1720650638642,-150.5,0.00029663,62]
[331693523,1720650638652,-150.5,0.00029673,62]
[331693524,1720650638661,-150.5,0.00029683,62]
[331693525,1720650638670,-500.0,0.00029691,2]
[331693526,1720650638680,-500.0,0.00029691,2]
[331693527,1720650638690,-500.0,0.00029691,2]
[331693528,1720650638699,-500.0,0.00029691,2]
[331693529,1720650638710,-500.0,0.00029691,2]
[331693530,1720650638718,-500.0,0.00029691,2]
[331693531,1720650638728,-500.0,0.00029691,2]
[331693532,1720650638737,-411.85185427,0.00029691,2]
[331693533,1720650638747,-500.0,0.00029691,2]
[331693534,1720650638757,-500.0,0.00029691,2]
[331693535,1720650638768,-500.0,0.00029691,2]
[331693536,1720650638777,-500.0,0.00029691,2]
[331693537,1720650638787,-500.0,0.00029691,2]
[331693538,1720650638796,-500.0,0.00029691,2]
[331693539,1720650638806,-500.0,0.00029691,2]
[331693540,1720650638816,-282.06803579,0.00029691,2]
[331693541,1720650638826,-271.15453231,0.00029691,2]
[331693542,1720650638836,-500.0,0.00029691,2]
[331693543,1720650638845,-500.0,0.00029691,2]
[331693544,1720650638855,-500.0,0.00029691,2]
[331693545,1720650638865,-500.0,0.00029691,2]
[331693546,1720650638874,-505.66003821,0.00029691,2]
[331693547,1720650638884,-500.0,0.00029691,2]
[331693548,1720650638894,-500.0,0.00029691,2]
[331693549,1720650638904,-500.0,0.00029691,2]
[331693550,1720650638914,-500.0,0.00029691,2]
[331693551,1720650638924,-500.0,0.00029691,2]
[331693552,1720650638933,-500.0,0.00029691,2]
[331693553,1720650638943,-500.0,0.00029691,2]
[331693554,1720650638953,-500.0,0.00029691,2]
[331693555,1720650638963,-500.0,0.00029691,2]
[331693556,1720650638973,-500.0,0.00029691,2]
[331693557,1720650638983,-192.39470163,0.00029691,2]
[331693558,1720650638992,-500.0,0.00029691,2]
[331693559,1720650639002,-500.0,0.00029691,2]
[331693560,1720650639012,-648.88431547,0.00029691,2]
[331693561,1720650639022,-500.0,0.00029691,2]
[331693562,1720650639032,-500.0,0.00029691,2]
[331693563,1720650639043,-500.0,0.00029691,2]
[331693564,1720650639054,-500.0,0.00029691,2]
[331693565,1720650639064,-500.0,0.00029691,2]
[331693566,1720650639074,-500.0,0.00029691,2]
[331693567,1720650639084,-500.0,0.00029691,2]
[331693568,1720650639226,-500.0,0.00029691,2]
[331693569,1720650639238,-500.0,0.00029691,2]
[331693570,1720650639248,-500.0,0.00029691,2]
[331693571,1720650639259,-500.0,0.00029691,2]
[331693572,1720650639269,-500.0,0.00029691,2]
[331693573,1720650639280,-500.0,0.00029691,2]
[331693574,1720650639290,-500.0,0.00029691,2]
[331693575,1720650639300,-534.54434584,0.00029691,2]
[331693576,1720650639310,-500.0,0.00029691,2]
[331693577,1720650639320,-500.0,0.00029691,2]
[331693578,1720650639329,-500.0,0.00029691,2]
[331693579,1720650639339,-273.08,0.00029693,3]
[331693580,1720650639349,-96907.7934999,0.00029693,3]
[331693581,1720650639359,-11732.33948186,0.00029703,2]
[331693582,1720650639369,-96907.7934999,0.00029793,3]
[331693583,1720650639379,-620.00000013,0.00029809,2]
[331693584,1720650639389,-154.62117811,0.00029813,2]
[331693585,1720650639399,-1987.94718132,0.00029861,2]
[331693586,1720650639409,-1261.53272703,0.00029861,2]
[331693587,1720650639423,-1159.02503866,0.00029861,2]
[331693588,1720650639434,-492.75452642,0.00029861,2]
[331693590,1720650639445,-155.43553926,0.0002987,2]
[331693591,1720650639455,-155.43553926,0.0002987,2]
[331693592,1720650639469,-173.14965076,0.00029893,2]
[331693593,1720650639478,-230.5509408,0.00029893,2]
[331693594,1720650639488,-288.64343489,0.00029893,2]
[331693595,1720650639500,-154.40893818,0.00029893,2]
[331693596,1720650639510,-500.0,0.00029893,2]
[331693597,1720650639519,-500.0,0.00029893,2]
[331693598,1720650639530,-500.0,0.00029893,2]
[331693599,1720650639540,-500.0,0.00029893,2]
[331693600,1720650639551,-500.0,0.00029893,2]
[331693601,1720650639562,-500.0,0.00029893,2]
[331693603,1720650639573,-500.0,0.00029893,2]
[331693604,1720650639585,-500.0,0.00029893,2]
[331693606,1720650639595,-500.0,0.00029893,2]
[331693607,1720650639607,-500.0,0.00029893,2]
[331693608,1720650639617,-96907.7934999,0.00029894,3]
[331693609,1720650639628,-371.36715798,0.00029979,2]
[331693610,1720650639639,-1435.70778162,0.00029979,2]
[331693611,1720650639649,-11041.25352559,0.00029999,2]
[331693612,1720650639659,-170.47875529,0.0003,4]
[331693613,1720650639670,-11239.65358693,0.0003,4]
[331693614,1720650639681,-8550.96884589,0.0003,5]
[331693615,1720650639691,-212.0,0.0003,2]
[331693616,1720650639701,-1128.92787157,0.00030067,2]
[331693617,1720650639712,-11732.33948182,0.00030471,2]
[331693619,1720650639722,-202.14376802,0.000305,2]
[331693621,1720650639732,-546.16,0.00031063,3]
[331693622,1720650639743,-11732.33948182,0.0003124,2]
[331693624,1720650639754,-1044.7647378,0.00031251,4]
[331693626,1720650639765,-11732.33948182,0.00032008,2]
[331693628,1720650639776,-151.0,0.0003245,4]
[331693630,1720650639786,-1128.92787157,0.00032683,2]
[331693631,1720650639795,-88888.0,0.00032755,5]
[331693633,1720650639805,-2000.0,0.00032756,2]
[331693635,1720650639815,-11732.33948182,0.00032776,2]
[331693636,1720650639825,-151.0,0.00032776,7]
[331693638,1720650639836,-647.806311,0.00032776,7]
[331693640,1720650639846,-647.806311,0.00032776,7]
[331693642,1720650639856,-151.0,0.00032776,7]
[331693644,1720650639867,-150.0,0.000328,13]
[331693646,1720650639877,-502.2419391,0.00032876,2]
[331693648,1720650639887,-500.0,0.00032876,7]
[331693650,1720650639897,-590.33,0.00032876,7]
[331693652,1720650639907,-501.04221571,0.00032876,7]
[331693654,1720650639918,-500.0,0.00032876,7]
[331693656,1720650639928,-500.0,0.00032876,7]
[331693658,1720650639938,-299.32475553,0.00032876,7]
[331693659,1720650639949,-513.16432097,0.00032876,7]
[331693660,1720650639959,-500.0,0.00032876,7]
[331693661,1720650639970,-500.0,0.00032876,7]
[331693663,1720650639980,-500.0,0.00032876,7]
[331693665,1720650639990,-377.28202409,0.00032876,7]
[331693667,1720650640000,-500.0,0.00032876,7]
[331693669,1720650640010,-463.86524635,0.00032876,7]
[331693671,1720650640019,-574.99385574,0.00032876,7]
[331693673,1720650640029,-453.82344019,0.00032876,7]
[331693675,1720650640039,-507.90842131,0.00032876,7]
[331693677,1720650640049,-500.0,0.00032876,7]
[331693679,1720650640059,-906.17,0.00032876,7]
[331693681,1720650640069,-511.45178003,0.00032876,7]
[331693683,1720650640079,-500.0,0.00032876,7]
[331693685,1720650640089,-513.41529748,0.00032876,7]
[331693686,1720650640099,-500.0,0.00032876,7]
[331693688,1720650640109,-500.0,0.00032876,7]
[331693690,1720650640118,-500.0,0.00032876,7]
[331693692,1720650640129,-500.0,0.00032876,7]
[331693694,1720650640139,-170.51701345,0.00032876,7]
[331693696,1720650640148,-512.94377566,0.00032876,7]
[331693698,1720650640158,-500.0,0.00032876,7]
[331693700,1720650640167,-290.7403546,0.00032876,7]
[331693702,1720650640177,-220.78763824,0.00032876,7]
[331693703,1720650640186,-500.0,0.00032876,7]
[331693705,1720650640196,-500.0,0.00032876,7]
[331693707,1720650640206,-500.0,0.00032876,7]
[331693708,1720650640216,-500.0,0.00032876,7]
[331693709,1720650640227,-527.25979344,0.00032876,7]
[331693710,1720650640237,-500.0,0.00032876,7]
[331693711,1720650640247,-500.0,0.00032876,7]
[331693712,1720650640256,-500.0,0.00032876,7]
[331693713,1720650640266,-500.0,0.00032876,7]
[331693714,1720650640276,-500.0,0.00032876,7]
[331693715,1720650640286,-500.0,0.00032876,7]
[331693716,1720650640296,-500.0,0.00032876,7]
[331693717,1720650640305,-500.0,0.00032876,7]
[331693718,1720650640315,-500.0,0.00032876,7]
[331693719,1720650640324,-500.0,0.00032876,7]
[331693720,1720650640333,-500.0,0.00032876,7]
[331693721,1720650640347,-171.77965434,0.00032876,7]
[331693722,1720650640356,-500.0,0.00032876,7]
[331693723,1720650640366,-500.0,0.00032876,7]
[331693724,1720650640375,-505.7015361,0.00032876,7]
[331693725,1720650640385,-500.0,0.00032876,7]
[331693726,1720650640395,-503.78074664,0.00032876,7]
[331693727,1720650640404,-500.0,0.00032876,7]
[331693728,1720650640414,-500.0,0.00032876,7]
[331693729,1720650640424,-500.0,0.00032876,7]
[331693730,1720650640433,-500.0,0.00032876,7]
[331693731,1720650640442,-200.0,0.00032876,7]
[331693732,1720650640451,-500.0,0.00032876,7]
[331693733,1720650640460,-500.0,0.00032876,7]
[331693734,1720650640471,-500.0,0.00032876,7]
[331693735,1720650640479,-512.26689138,0.00032876,7]
[331693736,1720650640489,-510.71730112,0.00032876,7]
[331693737,1720650640498,-649.8,0.00032876,7]
[331693738,1720650640507,-500.0,0.00032876,7]
[331693739,1720650640516,-344.45024411,0.00032876,7]
[331693740,1720650640525,-507.33415285,0.00032876,7]
[331693741,1720650640535,-782.14,0.00032876,7]
[331693742,1720650640544,-632.0588407,0.00032876,7]
[331693743,1720650640553,-1500.0,0.00032876,7]
[331693744,1720650640562,-500.0,0.00032876,7]
[331693745,1720650640572,-500.0,0.00032876,7]
[331693746,1720650640581,-500.0,0.00032876,7]
[331693747,1720650640591,-1176.9,0.00032876,7]
[331693748,1720650640600,-701.98,0.00032876,7]
[331693749,1720650640609,-510.60755786,0.00032876,7]
[331693750,1720650640619,-468.10779224,0.00032876,7]
[331693751,1720650640628,-615.97,0.00032876,7]
[331693752,1720650640637,-630.82,0.00032876,7]
[331693753,1720650640646,-500.0,0.00032876,7]
[331693754,1720650640655,-175.46959338,0.00032876,7]
[331693755,1720650640664,-500.0,0.00032876,7]
[331693756,1720650640672,-500.0,0.00032876,7]
[331693757,1720650640682,-600.0,0.00032876,7]
[331693758,1720650640691,-500.0,0.00032876,7]
[331693759,1720650640700,-500.0,0.00032876,2]
[331693760,1720650640708,-248.63993831,0.00032876,7]
[331693761,1720650640718,-518.02,0.00032876,7]
[331693762,1720650640727,-500.0,0.00032876,7]
[331693763,1720650640737,-1042.13,0.00032876,7]
[331693764,1720650640748,-500.0,0.00032876,7]
[331693765,1720650640759,-500.0,0.00032876,7]
[331693766,1720650640769,-632.47655085,0.00032876,7]
[331693767,1720650640778,-1851.71,0.00032876,7]
[331693768,1720650640787,-4419.1,0.00032876,7]
[331693769,1720650640796,-500.0,0.00032876,7]
[331693770,1720650640806,-553.60874357,0.00032876,7]
[331693771,1720650640815,-500.0,0.00032876,7]
[331693772,1720650640825,-500.0,0.00032876,7]
[331693773,1720650640834,-934.75,0.00032876,7]
[331693774,1720650640843,-1264.24,0.00032876,7]
[331693775,1720650640853,-746.38,0.00032876,7]
[331693776,1720650640862,-500.0,0.00032876,7]
[331693777,1720650640871,-500.0,0.00032876,7]
[331693778,1720650640880,-1507.55,0.00032876,4]
[331693779,1720650640889,-583.29349853,0.00032876,2]
[331693780,1720650640899,-525.0,0.00032876,7]
[331693781,1720650640907,-500.0,0.00032876,7]
[331693782,1720650640917,-527.02,0.00032876,7]
[331693783,1720650640927,-500.0,0.00032876,7]
[331693784,1720650640936,-500.0,0.00032876,7]
[331693785,1720650640945,-511.07554265,0.00032876,7]
[331693786,1720650640955,-500.0,0.00032876,7]
[331693787,1720650640964,-500.0,0.00032876,7]
[331693788,1720650640973,-552.6666109,0.00032876,7]
[331693789,1720650640983,-513.19,0.00032876,7]
[331693790,1720650640992,-500.0,0.00032876,7]
[331693791,1720650641002,-500.0,0.00032876,7]
[331693792,1720650641012,-3256.38,0.00032876,7]
[331693793,1720650641021,-1742.65,0.00032876,7]
[331693794,1720650641030,-500.0,0.00032876,7]
[331693795,1720650641040,-500.0,0.00032876,7]
[331693796,1720650641050,-533.42,0.00032876,7]
[331693797,1720650641059,-532.23927992,0.00032876,2]
[331693798,1720650641068,-500.0,0.00032876,7]
[331693799,1720650641078,-500.0,0.00032876,7]
[331693800,1720650641087,-500.0,0.00032876,7]
[331693801,1720650641096,-500.0,0.00032876,7]
[331693802,1720650641105,-534.0,0.00032876,7]
[331693803,1720650641115,-500.0,0.00032876,7]
[331693804,1720650641124,-500.0,0.00032876,7]
[331693805,1720650641134,-1573.55,0.00032876,7]
[331693806,1720650641144,-741.34,0.00032876,7]
[331693807,1720650641153,-500.0,0.00032876,7]
[331693808,1720650641162,-522.21,0.00032876,7]
[331693809,1720650641172,-500.0,0.00032876,7]
[331693810,1720650641182,-500.0,0.00032876,7]
[331693811,1720650641191,-500.0,0.00032876,7]
[331693812,1720650641199,-500.0,0.00032876,7]
[331693813,1720650641208,-507.23824294,0.00032876,7]
[331693814,1720650641217,-605.99,0.00032876,7]
[331693815,1720650641227,-512.18271713,0.00032876,7]
[331693816,1720650641237,-503.57810842,0.00032876,7]
[331693817,1720650641247,-500.0,0.00032876,7]
[331693818,1720650641256,-506.79393341,0.00032876,7]
[331693819,1720650641265,-999.25,0.00032876,7]
[331693820,1720650641275,-500.0,0.00032876,7]
[331693821,1720650641285,-505.75600917,0.00032876,7]
[331693822,1720650641294,-507.49225067,0.00032876,7]
[331693823,1720650641303,-541.49,0.00032876,7]
[331693824,1720650641312,-500.0,0.00032876,7]
[331693825,1720650641320,-611.33,0.00032876,7]
[331693826,1720650641330,-2948.35,0.00032876,7]
[331693827,1720650641338,-503.17023512,0.00032876,7]
[331693828,1720650641348,-500.0,0.00032876,7]
[331693829,1720650641357,-500.0,0.00032876,7]
[331693830,1720650641366,-500.0,0.00032876,7]
[331693831,1720650641375,-500.0,0.00032876,7]
[331693832,1720650641384,-500.0,0.00032876,7]
[331693833,1720650641394,-151.0,0.00032912,5]
[331693834,1720650641403,-13428.674717,0.00032963,2]
[331693835,1720650641411,-212.0,0.00033,2]
[331693836,1720650641420,-150.0,0.00033011,2]
[331693837,1720650641429,-1406.0,0.00033011,2]
[331693838,1720650641438,-500.0,0.0003315,7]
[331693839,1720650641447,-590.33,0.0003315,7]
[331693840,1720650641456,-906.17,0.0003315,7]
[331693841,1720650641465,-603.889205,0.0003315,7]
[331693842,1720650641475,-500.0,0.0003315,7]
[331693843,1720650641484,-500.0,0.0003315,7]
[331693844,1720650641493,-500.0,0.0003315,7]
[331693845,1720650641503,-500.0,0.0003315,7]
[331693846,1720650641512,-613.95197689,0.0003315,7]
[331693847,1720650641521,-500.0,0.0003315,7]
[331693848,1720650641531,-500.0,0.0003315,7]
[331693849,1720650641540,-649.8,0.0003315,7]
[331693850,1720650641549,-782.14,0.0003315,7]
[331693851,1720650641559,-1500.0,0.0003315,7]
[331693852,1720650641568,-1176.9,0.0003315,7]
[331693853,1720650641577,-701.98,0.0003315,7]
[331693854,1720650641586,-615.97,0.0003315,7]
[331693855,1720650641595,-630.82,0.0003315,7]
[331693856,1720650641604,-500.0,0.0003315,7]
[331693857,1720650641613,-500.0,0.0003315,7]
[331693858,1720650641622,-500.0,0.0003315,7]
[331693859,1720650641631,-500.0,0.0003315,7]
[331693860,1720650641640,-500.0,0.0003315,2]
[331693861,1720650641649,-518.02,0.0003315,7]
[331693862,1720650641658,-500.0,0.0003315,7]
[331693863,1720650641667,-1042.13,0.0003315,7]